fUST/lending_fUST_20240121
["ID","MTS","AMOUNT","RATE_DAILY","PERIOD"]
[312306248,1705768241592,-500.0,0.00032876,7]
[312306249,1705768241601,-154.73694719,0.00033,4]
[312306250,1705768241610,-2846.05665284,0.00033,2]
[312306251,1705768241620,-6763.78500734,0.00033,4]
[312306252,1705768241629,-1500.0,0.00033,2]
[312306253,1705768241638,-156.0,0.00033,2]
[312306254,1705768241647,-171.0,0.00033,2]
[312306255,1705768241656,-225.113381,0.0003317,2]
[312306256,1705768241665,-151.0,0.00033213,2]
[312306257,1705768241675,-87973.75692622,0.00033325,2]
[312306258,1705768241684,-171.79662836,0.00034,7]
[312306259,1705768241693,-10990.39266955,0.00034,2]
[312306260,1705768241702,-1500.0,0.00034,2]
[312306261,1705768241711,-225.113381,0.00034051,2]
[312306262,1705768241721,-155.0,0.0003411,2]
[312306263,1705768241730,-500.0,0.00034246,7]
[312306264,1705768241739,-151.0,0.00034427,2]
[312306265,1705768241748,-156.0,0.00034521,2]
[312306266,1705768241758,-185.691782,0.00034932,2]
[312306267,1705768241767,-225.113381,0.00034932,2]
[312306268,1705768241776,-154.73694719,0.00035,6]
[312306269,1705768241785,-548.14664073,0.00035,7]
[312306270,1705768241794,-858.91808665,0.00035,4]
[312306271,1705768241804,-156.22054158,0.00035,4]
[312306272,1705768241813,-650.59132824,0.00035,4]
[312306273,1705768241822,-333.12649891,0.00035,4]
[312306274,1705768241833,-3119.96924767,0.00035,20]
[312306275,1705768241842,-425.21360235,0.00035,2]
[312306276,1705768241852,-31980.30894113,0.00035,4]
[312306277,1705768241861,-1500.0,0.00035,2]
[312306278,1705768241871,-539.450103,0.00035,3]
[312306279,1705768241881,-160.81104418,0.0003504,2]
[312306280,1705768241890,-155.0,0.0003548,2]
[312306281,1705768241901,-4425.50824305,0.000355,14]
[312306282,1705768241910,-750.0,0.00035616,7]
[312306283,1705768241919,-182.36949,0.00035616,120]
[312306284,1705768241929,-151.0,0.00035641,4]
[312306285,1705768241938,-225.113381,0.00035812,2]
[312306286,1705768241947,-5000.0,0.00035956,2]
[312306287,1705768241956,-159.0,0.00036247,2]
[312306288,1705768241965,-225.113381,0.00036693,2]
[312306289,1705768241973,-151.0,0.00036855,4]
[312306290,1705768241983,-1000.0,0.00036986,7]
[312306291,1705768241992,-227.65233969,0.00037,4]
[312306292,1705768242001,-150.0,0.00037,30]
[312306293,1705768242011,-150.0,0.000372,30]
[312306294,1705768242021,-300.0,0.0003726,2]
[312306295,1705768242030,-150.77383924,0.00037366,2]
[312306296,1705768242039,-212.642763,0.000374,30]
[312306297,1705768242048,-225.113381,0.00037573,2]
[312306298,1705768242057,-302.0,0.00037777,2]
[312306299,1705768242067,-200.0,0.000379,4]
[312306300,1705768242076,-301.54767848,0.00037994,4]
[312306301,1705768242086,-2139.23248446,0.00038,4]
[312306302,1705768242095,-3679.38300141,0.00038,4]
[312306303,1705768242104,-1000.0,0.00038,38]
[312306304,1705768242113,-151.0,0.00038068,4]
[312306305,1705768242122,-1250.0,0.00038356,7]
[312306306,1705768242131,-225.113381,0.00038454,2]
[312306307,1705768242140,-603.09535696,0.00038633,7]
[312306308,1705768242151,-1000.0,0.00039,39]
[312306309,1705768242160,-2276.39654398,0.00039,5]
[312306310,1705768242169,-500.0,0.000392,15]
[312306311,1705768242178,-166.74380429,0.00039282,4]
[312306312,1705768242188,-151.0,0.00039282,4]
[312306313,1705768242198,-5000.0,0.00039289,2]
[312306314,1705768242207,-225.113381,0.00039335,2]
[312306315,1705768242216,-159.57600549,0.00039337,7]
[312306316,1705768242225,-5000.0,0.00039501,7]
[312306317,1705768242235,-154.73694719,0.00039553,7]
[312306318,1705768242244,-280.04844758,0.000396,30]
[312306319,1705768242254,-1206.19071393,0.00039611,30]
[312306320,1705768242263,-1500.0,0.00039726,7]
[312306321,1705768242272,-4038.3540562,0.0003999,4]
[312306322,1705768242281,-154.7215013,0.0004,7]
[312306324,1705768242290,-154.73694719,0.0004,4]
[312306326,1705768242299,-1599.91772387,0.0004,4]
[312306327,1705768242308,-738.23836783,0.0004,2]
[312306328,1705768242317,-5000.0,0.0004,2]
[312306329,1705768242328,-517.49938136,0.0004,5]
[312306331,1705768242340,-719.57029108,0.0004,2]
[312306333,1705768242349,-18893.38699722,0.0004,15]
[312306334,1705768242358,-2717.25590153,0.0004,2]
[312306336,1705768242367,-16210.00302709,0.0004,10]
[312306338,1705768242376,-168.25252747,0.0004,2]
[312306340,1705768242385,-1000.0,0.0004,40]
[312306342,1705768242394,-290.53429954,0.0004,4]
[312306343,1705768242403,-1845.46619047,0.0004,4]
[312306345,1705768242413,-592.4338243,0.0004,30]
[312306347,1705768242422,-500.0,0.0004,10]
[312306348,1705768242431,-249.35630735,0.0004,2]
[312306350,1705768242440,-150.0,0.0004,32]
[312306352,1705768242449,-156.965517,0.00040133,2]
[312306353,1705768242458,-154.993163,0.00040133,2]
[312306355,1705768242467,-161.08022687,0.00040139,30]
[312306357,1705768242476,-225.113381,0.00040215,2]
[312306359,1705768242486,-333.2863,0.000403,7]
[312306361,1705768242496,-151.0,0.00040496,21]
[312306362,1705768242506,-2974.0,0.00040658,7]
[312306364,1705768242516,-575.0,0.000408,30]
[312306366,1705768242524,-159.57600549,0.00040827,30]
[312306368,1705768242534,-555.69536749,0.00040985,10]
[312306370,1705768242543,-555.69536749,0.00040987,10]
[312306372,1705768242552,-555.69536749,0.00040988,10]
[312306373,1705768242561,-555.69536749,0.00040997,10]
[312306374,1705768242570,-23104.86657698,0.00041,10]
[312306375,1705768242579,-4497.59440094,0.00041,10]
[312306377,1705768242588,-10326.37001279,0.00041,10]
[312306379,1705768242702,-7304.91750841,0.00041,2]
[312306380,1705768242712,-1000.0,0.00041,41]
[312306381,1705768242721,-151.725022,0.00041,2]
[312306382,1705768242730,-1000.0,0.00041095,2]
[312306383,1705768242739,-1000.0,0.00041095,2]
[312306384,1705768242748,-1000.0,0.00041095,2]
[312306385,1705768242757,-1000.0,0.00041095,2]
[312306386,1705768242767,-1000.0,0.00041095,2]
[312306387,1705768242776,-1000.0,0.00041095,2]
[312306388,1705768242786,-1000.0,0.00041095,2]
[312306389,1705768242795,-1000.0,0.00041095,2]
[312306390,1705768242805,-1000.0,0.00041095,2]
[312306391,1705768242814,-1000.0,0.00041095,2]
[312306392,1705768242824,-1000.0,0.00041095,2]
[312306393,1705768242833,-1000.0,0.00041095,2]
[312306394,1705768242843,-1000.0,0.00041095,2]
[312306395,1705768242852,-1000.0,0.00041095,2]
[312306396,1705768242862,-1000.0,0.00041095,2]
[312306397,1705768242871,-1000.0,0.00041095,2]
[312306398,1705768242880,-1000.0,0.00041095,2]
[312306400,1705768242889,-188.15176325,0.00041095,2]
[312306402,1705768242898,-500.0,0.00041095,31]
[312306403,1705768242907,-500.0,0.00041095,31]
[312306405,1705768242917,-501.15029492,0.00041095,31]
[312306407,1705768242927,-500.0,0.00041095,31]
[312306409,1705768242936,-500.0,0.00041095,31]
[312306410,1705768242946,-500.0,0.00041095,31]
[312306412,1705768242955,-500.0,0.00041095,31]
[312306414,1705768242964,-717.95,0.00041095,31]
[312306416,1705768242974,-530.38,0.00041095,31]
[312306418,1705768242983,-500.0,0.00041095,31]
[312306419,1705768242993,-500.0,0.00041095,31]
[312306420,1705768243002,-500.0,0.00041095,31]
[312306421,1705768243013,-500.0,0.00041095,31]
[312306422,1705768243023,-500.0,0.00041095,31]
[312306423,1705768243032,-500.0,0.00041095,31]
[312306425,1705768243045,-500.0,0.00041095,31]
[312306427,1705768243055,-500.0,0.00041095,31]
[312306429,1705768243064,-500.0,0.00041095,31]
[312306431,1705768243073,-500.0,0.00041095,31]
[312306432,1705768243082,-893.05,0.00041095,31]
[312306433,1705768243091,-500.0,0.00041095,31]
[312306434,1705768243101,-500.0,0.00041095,31]
[312306435,1705768243111,-150.0,0.00041095,31]
[312306436,1705768243120,-1000.0,0.00041095,2]
[312306437,1705768243130,-559.45132248,0.00041095,31]
[312306438,1705768243140,-500.0,0.00041095,31]
[312306439,1705768243150,-174.66970385,0.00041095,31]
[312306440,1705768243161,-500.0,0.00041095,31]
[312306442,1705768243173,-889.73,0.00041095,31]
[312306443,1705768243183,-500.0,0.00041095,31]
[312306444,1705768243193,-500.0,0.00041095,31]
[312306445,1705768243203,-500.0,0.00041095,31]
[312306446,1705768243213,-898.56,0.00041095,31]
[312306447,1705768243223,-500.0,0.00041095,31]
[312306448,1705768243232,-500.0,0.00041095,31]
[312306449,1705768243241,-500.0,0.00041095,31]
[312306450,1705768243250,-500.0,0.00041095,31]
[312306451,1705768243259,-500.0,0.00041095,31]
[312306452,1705768243268,-500.0,0.00041095,31]
[312306453,1705768243277,-941.1,0.00041095,31]
[312306454,1705768243286,-500.0,0.00041095,31]
[312306455,1705768243295,-500.0,0.00041095,31]
[312306456,1705768243304,-463.23684118,0.00041095,31]
[312306457,1705768243313,-500.0,0.00041095,31]
[312306458,1705768243322,-895.69,0.00041095,31]
[312306460,1705768243332,-500.0,0.00041095,31]
[312306463,1705768243345,-500.0,0.00041095,31]
[312306466,1705768243354,-500.0,0.00041095,31]
[312306467,1705768243363,-566.16874495,0.00041095,7]
[312306468,1705768243372,-500.0,0.00041095,31]
[312306469,1705768243381,-501.74933043,0.00041095,31]
[312306470,1705768243391,-500.22970121,0.00041095,31]
[312306471,1705768243400,-1002.73897097,0.00041095,5]
[312306472,1705768243409,-500.0,0.00041095,31]
[312306473,1705768243418,-500.0,0.00041095,31]
[312306474,1705768243429,-500.0,0.00041095,31]
[312306475,1705768243439,-825.39,0.00041095,31]
[312306476,1705768243449,-500.0,0.00041095,31]
[312306477,1705768243469,-566.56018408,0.00041095,31]
[312306478,1705768243479,-500.0,0.00041095,31]
[312306479,1705768243489,-539.35675995,0.00041095,31]
[312306480,1705768243498,-636.01619355,0.00041095,31]
[312306481,1705768243508,-500.0,0.00041095,31]
[312306482,1705768243518,-500.0,0.00041095,31]
[312306484,1705768243528,-500.0,0.00041095,31]
[312306485,1705768243537,-197.49198378,0.00041095,31]
[312306486,1705768243547,-500.0,0.00041095,31]
[312306487,1705768243557,-517.08162698,0.00041095,31]
[312306488,1705768243566,-500.0,0.00041095,31]
[312306490,1705768243576,-10000.0,0.00041095,10]
[312306492,1705768243585,-500.0,0.00041095,31]
[312306493,1705768243595,-500.0,0.00041095,31]
[312306495,1705768243604,-500.0,0.00041095,31]
[312306497,1705768243614,-500.0,0.00041095,31]
[312306499,1705768243623,-500.0,0.00041095,7]
[312306501,1705768243633,-608.63,0.00041095,31]
[312306503,1705768243642,-500.0,0.00041095,31]
[312306505,1705768243651,-500.0,0.00041095,31]
[312306506,1705768243660,-500.0,0.00041095,31]
[312306508,1705768243670,-750.02,0.00041095,31]
[312306509,1705768243680,-182.84096084,0.00041095,31]
[312306510,1705768243689,-503.42789075,0.00041095,31]
[312306511,1705768243699,-500.19418103,0.00041095,31]
[312306512,1705768243708,-1120.83,0.00041095,31]
[312306513,1705768243717,-500.0,0.00041095,31]
[312306514,1705768243726,-500.0,0.00041095,31]
[312306515,1705768243736,-500.0,0.00041095,31]
[312306516,1705768243747,-431.57849528,0.00041095,2]
[312306517,1705768243756,-500.0,0.00041095,31]
[312306518,1705768243765,-500.0,0.00041095,31]
[312306519,1705768243775,-500.0,0.00041095,31]
[312306520,1705768243785,-500.0,0.00041095,31]
[312306521,1705768243794,-1517.52,0.00041095,31]
[312306522,1705768243804,-500.0,0.00041095,31]
[312306523,1705768243814,-500.0,0.00041095,31]
[312306524,1705768243824,-500.0,0.00041095,31]
[312306526,1705768243834,-500.0,0.00041095,31]
[312306528,1705768243843,-500.0,0.00041095,31]
[312306530,1705768243853,-1317.61,0.00041095,31]
[312306532,1705768243863,-500.0,0.00041095,31]
[312306534,1705768243872,-1317.61,0.00041095,31]
[312306535,1705768243882,-1317.61,0.00041095,31]
[312306537,1705768243891,-1317.61,0.00041095,31]
[312306538,1705768243900,-1317.61,0.00041095,31]
[312306540,1705768243910,-1317.61,0.00041095,31]
[312306541,1705768243920,-1317.61,0.00041095,31]
[312306542,1705768243929,-1317.61,0.00041095,31]
[312306543,1705768243938,-1317.61,0.00041095,31]
[312306544,1705768243947,-1317.61,0.00041095,31]
[312306545,1705768243956,-1317.61,0.00041095,31]
[312306546,1705768243966,-1317.61,0.00041095,31]
[312306547,1705768243976,-500.61292987,0.00041095,31]
[312306548,1705768243986,-1317.61,0.00041095,31]
[312306549,1705768243995,-1317.61,0.00041095,31]
[312306550,1705768244005,-1317.61,0.00041095,31]
[312306551,1705768244015,-1317.61,0.00041095,31]
[312306552,1705768244025,-1317.61,0.00041095,31]
[312306553,1705768244034,-1317.61,0.00041095,31]
[312306554,1705768244044,-1317.61,0.00041095,31]
[312306555,1705768244054,-500.0,0.00041095,31]
[312306556,1705768244064,-500.9919757,0.00041095,31]
[312306557,1705768244074,-1317.61,0.00041095,31]
[312306558,1705768244083,-175.85456997,0.00041095,31]
[312306559,1705768244092,-1317.61,0.00041095,31]
[312306560,1705768244101,-500.0,0.00041095,31]
[312306561,1705768244111,-1317.61,0.00041095,31]
[312306562,1705768244120,-1317.61,0.00041095,31]
[312306563,1705768244130,-1317.63413947,0.00041095,31]
[312306564,1705768244139,-533.5,0.00041095,31]
[312306565,1705768244148,-500.0,0.00041095,31]
[312306566,1705768244157,-864.03,0.00041095,31]
[312306567,1705768244167,-500.0,0.00041095,31]
[312306568,1705768244177,-500.0,0.00041095,31]
[312306569,1705768244186,-352.14170616,0.00041095,31]
[312306570,1705768244196,-500.0,0.00041095,31]
[312306571,1705768244205,-500.0,0.00041095,31]
[312306572,1705768244215,-500.0,0.00041095,31]
[312306573,1705768244225,-216.60104163,0.00041095,31]
[312306574,1705768244235,-500.0,0.00041095,31]
[312306575,1705768244244,-532.63566913,0.00041095,31]
[312306576,1705768244253,-500.0,0.00041095,31]
[312306577,1705768244263,-500.0,0.00041095,31]
[312306578,1705768244272,-500.0,0.00041095,31]
[312306579,1705768244281,-2134.02,0.00041095,31]
[312306580,1705768244291,-500.0,0.00041095,31]
[312306581,1705768244301,-3009.65,0.00041095,31]
[312306582,1705768244311,-500.0,0.00041095,30]
[312306583,1705768244322,-500.0,0.00041095,30]
[312306584,1705768244335,-500.0,0.00041095,30]
[312306585,1705768244346,-500.0,0.00041095,30]
[312306586,1705768244355,-501.44529733,0.00041095,30]
[312306587,1705768244366,-537.6453484,0.00041095,31]
[312306588,1705768244377,-500.0,0.00041095,31]
[312306589,1705768244386,-500.0,0.00041095,31]
[312306590,1705768244395,-500.0,0.00041095,31]
[312306591,1705768244405,-500.0,0.00041095,31]
[312306592,1705768244416,-521.44,0.00041095,31]
[312306593,1705768244428,-246.13597082,0.00041095,31]
[312306594,1705768244438,-1074.76,0.00041095,31]
[312306595,1705768244447,-500.0,0.00041095,31]
[312306596,1705768244456,-500.0,0.00041095,31]
[312306597,1705768244466,-1071.51,0.00041095,31]
[312306598,1705768244475,-4081.11,0.00041095,31]
[312306599,1705768244485,-500.0,0.00041095,31]
[312306600,1705768244494,-500.0,0.00041095,31]
[312306601,1705768244504,-434.42708467,0.00041095,31]
[312306602,1705768244514,-500.0,0.00041095,31]
[312306603,1705768244523,-517.3988449,0.00041095,31]
[312306604,1705768244533,-500.0,0.00041095,31]
[312306605,1705768244543,-500.0,0.00041095,31]
[312306606,1705768244553,-443.41846203,0.00041095,3]
[312306607,1705768244563,-500.0,0.00041095,31]
[312306608,1705768244573,-500.0,0.00041095,31]
[312306609,1705768244583,-500.0,0.00041095,31]
[312306610,1705768244593,-593.13,0.00041095,31]
[312306611,1705768244602,-1036.63,0.00041095,31]
[312306612,1705768244724,-1282.52,0.00041095,31]
[312306613,1705768244735,-500.0,0.00041095,31]
[312306614,1705768244745,-38160.15,0.00041095,14]
[312306615,1705768244754,-500.0,0.00041095,31]
[312306616,1705768244764,-500.0,0.00041095,31]
[312306617,1705768244773,-502.67,0.00041095,31]
[312306618,1705768244783,-500.0,0.00041095,31]
[312306619,1705768244792,-536.34299825,0.00041095,31]
[312306620,1705768244801,-500.0,0.00041095,2]
[312306621,1705768244810,-514.53387714,0.00041095,31]
[312306622,1705768244819,-500.0,0.00041095,31]
[312306623,1705768244829,-332.89932499,0.00041095,31]
[312306624,1705768244839,-500.0,0.00041095,31]
[312306625,1705768244847,-978.22,0.00041095,31]
[312306626,1705768244857,-500.0,0.00041095,31]
[312306627,1705768244867,-2641.83,0.00041095,31]
[312306628,1705768244877,-661.96,0.00041095,31]
[312306629,1705768244887,-500.0,0.00041095,31]
[312306630,1705768244896,-220.0,0.00041095,2]
[312306631,1705768244907,-500.0,0.00041095,31]
[312306632,1705768244916,-2819.62,0.00041095,31]
[312306633,1705768244929,-500.0,0.00041095,31]
[312306634,1705768244938,-500.0,0.00041095,31]
[312306635,1705768244948,-503.81675631,0.00041095,31]
[312306636,1705768244958,-500.0,0.00041095,31]
[312306637,1705768244967,-500.0,0.00041095,31]
[312306638,1705768244976,-785.7,0.00041095,31]
[312306639,1705768244986,-671.17,0.00041095,31]
[312306640,1705768244996,-500.0,0.00041095,31]
[312306641,1705768245005,-500.0,0.00041095,31]
[312306642,1705768245015,-500.0,0.00041095,31]
[312306643,1705768245025,-563.04865596,0.00041095,31]
[312306644,1705768245034,-500.0,0.00041095,31]
[312306645,1705768245044,-500.0,0.00041095,31]
[312306646,1705768245054,-7239.54,0.00041095,31]
[312306647,1705768245064,-212.68094512,0.00041095,31]
[312306648,1705768245074,-500.0,0.00041095,31]
[312306649,1705768245083,-1404.08,0.00041095,31]
[312306650,1705768245093,-3332.09,0.00041095,31]
[312306651,1705768245102,-500.0,0.00041095,31]
[312306652,1705768245112,-500.0,0.00041095,31]
[312306653,1705768245122,-501.48319759,0.00041095,31]
[312306654,1705768245131,-527.86052604,0.00041095,31]
[312306655,1705768245140,-2010.87,0.00041095,31]
[312306656,1705768245149,-500.0,0.00041095,31]
[312306657,1705768245159,-500.0,0.00041095,31]
[312306658,1705768245168,-603.98,0.00041095,31]
[312306659,1705768245179,-500.0,0.00041095,31]
[312306660,1705768245189,-500.0,0.00041095,31]
[312306661,1705768245199,-500.0,0.00041095,31]
[312306662,1705768245209,-1881.4,0.00041095,31]
[312306663,1705768245219,-519.85,0.00041095,31]
[312306664,1705768245228,-507.85197413,0.00041095,31]
[312306665,1705768245238,-500.0,0.00041095,20]
[312306667,1705768245248,-500.0,0.00041095,31]
[312306669,1705768245257,-335.69574307,0.00041095,31]
[312306671,1705768245266,-20675.05,0.00041095,31]
[312306673,1705768245276,-194.12287435,0.00041095,31]
[312306675,1705768245286,-12301.24,0.00041095,31]
[312306676,1705768245296,-500.0,0.00041095,31]
[312306677,1705768245305,-500.0,0.00041095,31]
[312306678,1705768245315,-191.14075623,0.00041095,31]
[312306679,1705768245325,-617.74617135,0.00041095,31]
[312306680,1705768245337,-1760.13,0.00041095,31]
[312306681,1705768245354,-500.0,0.00041095,2]
[312306682,1705768245363,-10176.61,0.00041095,31]
[312306683,1705768245372,-924.27,0.00041095,31]
[312306684,1705768245382,-4214.41,0.00041095,31]
[312306685,1705768245393,-606.97,0.00041095,31]
[312306686,1705768245402,-521.06279048,0.00041095,31]
[312306687,1705768245412,-856.72,0.00041095,31]
[312306688,1705768245421,-500.0,0.00041095,31]
[312306689,1705768245432,-500.0,0.00041095,31]
[312306690,1705768245442,-1560.84,0.00041095,31]
[312306691,1705768245451,-610.35,0.00041095,31]
[312306692,1705768245460,-500.0,0.00041095,31]
[312306693,1705768245469,-500.0,0.00041095,31]
[312306694,1705768245479,-500.0,0.00041095,31]
[312306695,1705768245488,-500.0,0.00041095,31]
[312306696,1705768245498,-1771.96,0.00041095,31]
[312306697,1705768245507,-500.0,0.00041095,31]
[312306698,1705768245517,-500.0,0.00041095,31]
[312306699,1705768245526,-1165.2,0.00041095,31]
[312306700,1705768245535,-428.12595652,0.00041095,2]
[312306701,1705768245545,-2127.81,0.00041095,31]
[312306702,1705768245555,-500.0,0.00041095,31]
[312306703,1705768245564,-500.0,0.00041095,31]
[312306704,1705768245573,-1094.5,0.00041095,31]
[312306705,1705768245583,-500.0,0.00041095,31]
[312306706,1705768245592,-529.40393585,0.00041095,31]
[312306707,1705768245601,-500.0,0.00041095,31]
[312306708,1705768245610,-500.0,0.00041095,31]
[312306709,1705768245620,-500.0,0.00041095,31]
[312306710,1705768245629,-500.0,0.00041095,31]
[312306711,1705768245638,-7904.3,0.00041095,31]
[312306712,1705768245647,-500.0,0.00041095,31]
[312306713,1705768245656,-500.0,0.00041095,31]
[312306714,1705768245665,-500.0,0.00041095,31]
[312306715,1705768245675,-543.29,0.00041095,31]
[312306716,1705768245685,-500.0,0.00041095,31]
[312306717,1705768245694,-469.96674744,0.00041095,31]
[312306718,1705768245703,-880.29,0.00041095,31]
[312306719,1705768245712,-500.0,0.00041095,31]
[312306720,1705768245721,-500.0,0.00041095,31]
[312306721,1705768245731,-9860.07,0.00041095,31]
[312306722,1705768245741,-500.0,0.00041095,31]
[312306723,1705768245751,-500.0,0.00041095,31]
[312306724,1705768245761,-500.0,0.00041095,31]
[312306725,1705768245771,-500.78990882,0.00041095,31]
[312306726,1705768245780,-461.65658071,0.00041095,31]
[312306727,1705768245789,-500.0,0.00041095,31]
[312306728,1705768245799,-500.0,0.00041095,31]
[312306729,1705768245808,-500.0,0.00041095,31]
[312306730,1705768245818,-2185.48,0.00041095,31]
[312306731,1705768245827,-500.58664242,0.00041095,31]
[312306732,1705768245837,-500.0,0.00041095,31]
[312306733,1705768245846,-500.0,0.00041095,31]
[312306734,1705768245855,-500.0,0.00041095,31]
[312306735,1705768245865,-500.0,0.00041095,31]
[312306736,1705768245874,-500.0,0.00041095,31]
[312306737,1705768245883,-500.0,0.00041095,31]
[312306738,1705768245893,-500.0,0.00041095,31]
[312306739,1705768245903,-500.0,0.00041095,31]
[312306740,1705768245912,-501.6771907,0.00041095,31]
[312306741,1705768245922,-286.49158774,0.00041095,31]
[312306742,1705768245931,-529.24302427,0.00041095,31]
[312306743,1705768245941,-525.93641845,0.00041095,31]
[312306744,1705768245950,-510.20441833,0.00041095,31]
[312306745,1705768245959,-500.0,0.00041095,31]
[312306746,1705768245968,-583.7,0.00041095,31]
[312306747,1705768245977,-500.0,0.00041095,31]
[312306748,1705768245987,-156.89388993,0.00041095,31]
[312306749,1705768245996,-500.0,0.00041095,31]
[312306750,1705768246005,-1814.69,0.00041095,31]
[312306751,1705768246015,-500.0,0.00041095,31]
[312306752,1705768246024,-2196.59,0.00041095,31]
[312306753,1705768246033,-500.0,0.00041095,31]
[312306754,1705768246043,-231.83581969,0.00041095,31]
[312306755,1705768246053,-500.0,0.00041095,31]
[312306756,1705768246062,-500.0,0.00041095,31]
[312306757,1705768246071,-500.0,0.00041095,31]
[312306758,1705768246081,-500.0,0.00041095,31]
[312306759,1705768246090,-500.0,0.00041095,31]
[312306760,1705768246100,-500.19662977,0.00041095,31]
[312306761,1705768246109,-502.85254966,0.00041095,31]
[312306762,1705768246118,-500.0,0.00041095,31]
[312306763,1705768246127,-500.0,0.00041095,31]
[312306764,1705768246136,-274.60791599,0.00041095,31]
[312306765,1705768246145,-500.0,0.00041095,31]
[312306766,1705768246155,-501.80852807,0.00041095,31]
[312306767,1705768246163,-500.0,0.00041095,31]
[312306768,1705768246173,-500.0,0.00041095,31]
[312306770,1705768246181,-865.85,0.00041095,31]
[312306771,1705768246190,-500.0,0.00041095,31]
[312306772,1705768246199,-500.0,0.00041095,31]
[312306773,1705768246208,-1142.53,0.00041095,7]
[312306774,1705768246217,-500.0,0.00041095,31]
[312306775,1705768246227,-500.0,0.00041095,31]
[312306776,1705768246236,-500.0,0.00041095,31]
[312306778,1705768246246,-500.0,0.00041095,31]
[312306780,1705768246256,-500.0,0.00041095,31]
[312306782,1705768246265,-500.0,0.00041095,31]
[312306785,1705768246275,-500.0,0.00041095,31]
[312306786,1705768246285,-1927.86,0.00041095,31]
[312306787,1705768246294,-500.57631301,0.00041095,31]
[312306789,1705768246304,-500.0,0.00041095,31]
[312306792,1705768246313,-500.0,0.00041095,31]
[312306795,1705768246323,-500.0,0.00041095,31]
[312306798,1705768246332,-151.0,0.00041095,2]
[312306801,1705768246343,-151.0,0.00041095,2]
[312306804,1705768246353,-714.627315,0.00041095,2]
[312306807,1705768246362,-714.627315,0.00041095,2]
[312306809,1705768246372,-185.691782,0.00041096,2]
[312306810,1705768246381,-225.113381,0.00041096,2]
[312306812,1705768246390,-187.13,0.000411,14]
[312306814,1705768246399,-187.13311439,0.000411,14]
[312306816,1705768246408,-187.13311439,0.000411,14]
[312306819,1705768246418,-187.13311439,0.000411,14]
[312306822,1705768246429,-187.13,0.000411,14]
[312306825,1705768246438,-162.68,0.000411,14]
[312306828,1705768246449,-2974.0,0.00041342,14]
[312306830,1705768246545,-575.79509815,0.00041369,31]
[312306831,1705768246554,-500.0,0.00041369,31]
[312306832,1705768246564,-500.0,0.00041369,31]
[312306833,1705768246573,-500.0,0.00041369,31]
[312306834,1705768246582,-500.0,0.00041369,31]
[312306835,1705768246591,-500.0,0.00041369,31]
[312306836,1705768246600,-717.95,0.00041369,31]
[312306837,1705768246610,-530.38,0.00041369,31]
[312306838,1705768246619,-500.0,0.00041369,31]
[312306839,1705768246628,-500.0,0.00041369,31]
[312306840,1705768246637,-500.0,0.00041369,31]
[312306841,1705768246646,-500.0,0.00041369,31]
[312306842,1705768246655,-500.0,0.00041369,31]
[312306843,1705768246664,-500.0,0.00041369,31]